fUST/lending_fUST_20240810
["ID","MTS","AMOUNT","RATE_DAILY","PERIOD"]
[334580009,1723271438990,-354.60856661,0.00019167,2]
[334580010,1723271439000,-450.58299636,0.00019167,2]
[334580011,1723271439010,-314.13592146,0.00019167,2]
[334580012,1723271439020,-314.13592146,0.00019177,2]
[334580013,1723271439031,-5137.52364973,0.00019177,2]
[334580014,1723271439041,-241.55058347,0.00019177,2]
[334580015,1723271439050,-169.941005,0.00019178,2]
[334580016,1723271439060,-36124.64756853,0.00019226,11]
[334580017,1723271439069,-151.0,0.00019226,2]
[334580018,1723271439079,-188.67974,0.00019226,2]
[334580019,1723271439089,-303.352888,0.00019226,2]
[334580020,1723271439098,-303.352888,0.00019226,2]
[334580021,1723271439108,-388.75477,0.00019226,2]
[334580022,1723271439117,-151.0,0.00019226,2]
[334580023,1723271439127,-388.75477,0.00019226,2]
[334580024,1723271439137,-173.605182,0.00019226,2]
[334580025,1723271439146,-151.581243,0.00019226,2]
[334580026,1723271439155,-173.605182,0.00019226,2]
[334580027,1723271439165,-151.581243,0.00019226,2]
[334580028,1723271439175,-151.0,0.00019235,2]
[334580029,1723271439185,-288.414,0.00019235,2]
[334580030,1723271439194,-288.414,0.00019235,2]
[334580031,1723271439203,-151.0,0.00019235,2]
[334580032,1723271439212,-151.0,0.00019235,2]
[334580033,1723271439221,-288.414,0.00019236,2]
[334580034,1723271439231,-288.414,0.00019236,2]
[334580035,1723271439241,-288.414,0.00019236,2]
[334580036,1723271439250,-288.414,0.00019236,2]
[334580037,1723271439260,-202.876898,0.00019236,2]
[334580038,1723271439271,-151.0,0.00019236,2]
[334580039,1723271439280,-250.0,0.00019338,2]
[334580040,1723271439290,-150.0,0.00019363,2]
[334580041,1723271439300,-150.112233,0.000194,2]
[334580042,1723271439310,-5137.52364973,0.00019434,2]
[334580043,1723271439320,-297.12317978,0.00019464,2]
[334580044,1723271439330,-151.0,0.00019479,2]
[334580045,1723271439339,-421.465022,0.00019479,2]
[334580046,1723271439349,-421.465022,0.00019479,2]
[334580047,1723271439358,-5137.52364973,0.00019548,2]
[334580048,1723271439367,-450.0,0.00019568,2]
[334580049,1723271439377,-150.112233,0.000196,2]
[334580050,1723271439386,-5137.52364975,0.00019779,2]
[334580051,1723271439396,-587.0,0.00019823,2]
[334580052,1723271439405,-151.0,0.00019885,2]
[334580053,1723271439415,-303.352888,0.0001992,2]
[334580054,1723271439424,-303.352888,0.0001992,2]
[334580055,1723271439433,-388.75477,0.0001992,2]
[334580056,1723271439443,-151.0,0.0001992,2]
[334580057,1723271439453,-388.75477,0.0001992,2]
[334580058,1723271439463,-173.605182,0.0001992,2]
[334580059,1723271439472,-151.581243,0.0001992,2]
[334580060,1723271439483,-173.605182,0.0001992,2]
[334580061,1723271439492,-151.581243,0.0001992,2]
[334580062,1723271439502,-288.414,0.00019931,2]
[334580063,1723271439513,-288.414,0.00019931,2]
[334580064,1723271439523,-288.414,0.00019979,2]
[334580065,1723271439532,-288.414,0.00019979,2]
[334580066,1723271439542,-288.414,0.00019979,2]
[334580068,1723271439551,-288.414,0.00019979,2]
[334580070,1723271439561,-227947.67814997,0.0001999,2]
[334580072,1723271439571,-151.0,0.0001999,2]
[334580073,1723271439580,-421.465022,0.0001999,2]
[334580074,1723271439590,-421.465022,0.0001999,2]
[334580075,1723271439599,-156.42647328,0.0002,2]
[334580076,1723271439608,-216.64652277,0.0002,2]
[334580077,1723271439618,-154.83259253,0.0002,2]
[334580078,1723271439627,-155.09721933,0.0002,2]
[334580079,1723271439636,-346.25605686,0.0002,2]
[334580080,1723271439645,-294.2333485,0.0002,2]
[334580082,1723271439655,-154187.51682503,0.0002,2]
[334580084,1723271439664,-252.18607704,0.0002,2]
[334580086,1723271439674,-288.414,0.0002,2]
[334580087,1723271439683,-288.414,0.0002,2]
[334580089,1723271439692,-151.4401548,0.0002,2]
[334580091,1723271439702,-151.0,0.0002,2]
[334580093,1723271439711,-1000.0,0.0002,20]
[334580095,1723271439720,-303.352888,0.0002,2]
[334580096,1723271439731,-303.352888,0.0002,2]
[334580098,1723271439741,-289.82418402,0.0002,2]
[334580100,1723271439751,-336.42315708,0.0002,2]
[334580102,1723271439760,-22485.98405419,0.0002,2]
[334580104,1723271439769,-388.75477,0.0002,2]
[334580105,1723271439779,-151.0,0.0002,2]
[334580106,1723271439789,-388.75477,0.0002,2]
[334580107,1723271439798,-173.605182,0.0002,2]
[334580108,1723271439807,-151.581243,0.0002,2]
[334580109,1723271439817,-173.605182,0.0002,2]
[334580111,1723271439826,-151.581243,0.0002,2]
[334580113,1723271439840,-151.0,0.0002,2]
[334580114,1723271439849,-7820.87161976,0.0002,2]
[334580115,1723271440092,-151.0,0.00018647,2]
[334580116,1723271440102,-1795.90411051,0.00018657,2]
[334580117,1723271440112,-151.0,0.00018686,2]
[334580118,1723271440121,-151.0,0.0001869,2]
[334580119,1723271440130,-151.0,0.000187,2]
[334580120,1723271440139,-151.0,0.00019125,2]
[334580121,1723271440149,-33034.05662401,0.0002,2]
[334580122,1723271440159,-421.465022,0.0002,2]
[334580123,1723271440167,-421.465016,0.0002,2]
[334580124,1723271440177,-822.9985931,0.00020013,2]
[334580125,1723271440186,-400.0,0.00020042,2]
[334580126,1723271440195,-400.0,0.00020042,2]
[334580127,1723271440204,-600.0,0.00020048,2]
[334580128,1723271440214,-191.941948,0.00020089,2]
[334580129,1723271440223,-183.886647,0.00020089,2]
[334580130,1723271440234,-150.112233,0.000202,2]
[334580131,1723271440244,-1444.82566449,0.0002028,2]
[334580132,1723271440253,-150.234115,0.00020424,2]
[334580133,1723271440262,-160.0,0.0002049,3]
[334580134,1723271440271,-151.0,0.00020547,2]
[334580135,1723271440280,-151.0,0.00020547,2]
[334580136,1723271440290,-242.6416,0.00020577,2]
[334580137,1723271440299,-1000.0,0.00020598,2]
[334580138,1723271440308,-2128.47183867,0.000206,2]
[334580142,1723271442840,-494.53502099,0.00019147,2]
[334580143,1723271442851,-179.47087453,0.00019338,2]
[334580144,1723271442862,-151.0,0.00019434,2]
[334580145,1723271442871,-151.0,0.0001999,2]
[334580146,1723271442882,-151.0,0.0002,2]
[334580147,1723271442891,-165.169005,0.0002,2]
[334580148,1723271442901,-839.0121935,0.000206,2]
[334580149,1723271442914,-174.658639,0.000206,2]
[334580150,1723271442924,-1007.555508,0.000206,2]
[334580151,1723271442935,-1000.0,0.00020613,2]
[334580152,1723271442945,-151.0,0.00020634,2]
[334580153,1723271442954,-151.0,0.00020634,2]
[334580154,1723271442964,-150.0,0.0002066,2]
[334580155,1723271442973,-507.0,0.0002066,2]
[334580156,1723271442983,-1412.0,0.0002066,2]
[334580157,1723271442992,-150.01,0.00020678,2]
[334580158,1723271443001,-2993.33781285,0.00020678,2]
[334580159,1723271443010,-13364.28160714,0.000207,2]
[334580160,1723271443019,-19576.48904834,0.000207,9]
[334580161,1723271443028,-288.414,0.000207,2]
[334580162,1723271443038,-288.413997,0.000207,2]
[334580163,1723271443048,-151.0,0.000207,2]
[334580164,1723271443059,-303.352888,0.000207,2]
[334580165,1723271443069,-303.352881,0.000207,2]
[334580166,1723271443079,-602.0,0.000207,2]
[334580167,1723271443088,-388.75477,0.000207,2]
[334580168,1723271443097,-2404.933,0.000207,2]
[334580169,1723271443106,-151.0,0.000207,2]
[334580170,1723271443115,-388.754762,0.000207,2]
[334580171,1723271443124,-173.605182,0.000207,2]
[334580172,1723271443134,-151.581243,0.000207,2]
[334580173,1723271443143,-173.605191,0.000207,2]
[334580174,1723271443153,-151.581247,0.000207,2]
[334580175,1723271443162,-63092.92262921,0.00020709,2]
[334580244,1723271730865,5638.67409638,0.00015953,2]
[334580310,1723272568169,-300.0,0.00015707,2]
[334580311,1723272568191,-280.97820124,0.00015708,2]
[334580391,1723272638314,-24900.0,0.00015287,2]
[334580393,1723272638324,-300.0,0.00015707,2]
[334580394,1723272638333,-20493.48759722,0.00015708,2]
[334580395,1723272638343,-170.339493,0.00015713,2]
[334580396,1723272638352,-982.35474834,0.00015953,2]
[334580397,1723272638361,-170.339493,0.00016123,2]
[334580398,1723272638370,-170.339493,0.00016532,2]
[334580399,1723272638379,-10850.78770031,0.00016562,2]
[334580400,1723272638453,-333.04240939,0.00016562,2]
[334580401,1723272638464,-2128.424338,0.00016562,2]
[334580402,1723272638473,-575.52770545,0.00017032,2]
[334580403,1723272638482,-116.36947579,0.00017232,2]
[334580404,1723272638511,-134.01833121,0.00017232,2]
[334580405,1723272638524,-420.0,0.00017278,2]
[334580406,1723272638535,-575.52770544,0.00017926,2]
[334580407,1723272638546,-575.52770544,0.00018821,2]
[334580408,1723272638555,-200.0,0.00018904,2]
[334580409,1723272638565,-535.1745485,0.0001895,2]
[334580410,1723272638575,-587.0,0.00019005,2]
[334580411,1723272638585,-250.0,0.00019041,2]
[334580412,1723272638595,-248.98752278,0.00019102,2]
[334580413,1723272638604,-6398.57017972,0.00019153,2]
[334580414,1723272638614,-371.72815708,0.00019155,2]
[334580415,1723272638625,-1808.99444388,0.00019167,2]
[334580416,1723272638637,-274.20082009,0.00019167,2]
[334580417,1723272638648,-1610.56614984,0.00019167,2]
[334580418,1723272638658,-9649.70159836,0.00019177,2]
[334580419,1723272638669,-4328.30972733,0.00019177,2]
[334580420,1723272638678,-195.04032879,0.00019177,2]
[334580421,1723272638688,-188.2181997,0.00019256,2]
[334580422,1723272638698,-154.7983992,0.00019256,2]
[334580423,1723272638707,-154.82257244,0.00019256,2]
[334580424,1723272638718,-154.79103211,0.00019337,2]
[334580425,1723272638728,-360.37816851,0.00019338,2]
[334580426,1723272638738,-155.13148679,0.00019451,2]
[334580427,1723272638748,-413.75162727,0.00019451,2]
[334580428,1723272638757,-155.34902545,0.00019451,2]
[334580429,1723272638767,-155.09609778,0.00019451,2]
[334580430,1723272638776,-160.60401813,0.00019477,2]
[334580431,1723272638787,-299.97138675,0.00019477,2]
[334580432,1723272638797,-229.87239205,0.00019477,2]
[334580433,1723272638806,-575.52770544,0.00019715,2]
[334580434,1723272638816,-1444.82566449,0.0002,2]
[334580435,1723272638826,-1000.0,0.0002,20]
[334580436,1723272638835,-154.79103211,0.0002,2]
[334580437,1723272638845,-336.42315708,0.0002,2]
[334580438,1723272638855,-191.941948,0.00020089,2]
[334580439,1723272638864,-167.060381,0.00020089,2]
[334580440,1723272638873,-810.1149959,0.0002028,2]
[334580441,1723272638883,-54511.2646307,0.0002051,2]
[334580442,1723272638892,-1000.0,0.0002052,2]
[334580443,1723272638902,-373.1253336,0.00020535,2]
[334580444,1723272638912,-151.0,0.0002058,2]
[334580445,1723272638922,-151.0,0.0002058,2]
[334580446,1723272638931,-242.6416,0.00020605,2]
[334580447,1723272638941,-575.52770544,0.00020609,2]
[334580448,1723272638950,-2000.0,0.00020609,2]
[334580449,1723272638959,-1000.0,0.00020644,2]
[334580450,1723272638969,-150.0,0.00020649,2]
[334580451,1723272638978,-507.0,0.00020649,2]
[334580452,1723272638988,-1412.0,0.00020649,2]
[334580453,1723272638998,-8530.96857733,0.00020672,3]
[334580454,1723272639007,-151.0,0.00020678,2]
[334580455,1723272639016,-151.0,0.00020678,2]
[334580456,1723272639025,-160.0,0.0002068,4]
[334580457,1723272639035,-873.0126774,0.00020696,2]
[334580458,1723272639044,-500.0,0.00020697,2]
[334580459,1723272639054,-500.0,0.00020697,2]
[334580460,1723272639064,-500.0,0.00020697,2]
[334580461,1723272639073,-109022.529261,0.00020699,2]
[334580462,1723272639083,-150.112234,0.000207,3]
[334580463,1723272639092,-2926.83132279,0.000207,2]
[334580464,1723272639101,-602.0,0.000207,2]
[334580465,1723272639110,-150.01,0.00020708,2]
[334580466,1723272639120,-2993.33781285,0.00020708,2]
[334580467,1723272639129,-43031.49704026,0.00020709,11]
[334580472,1723272640306,-2167.75264294,0.00020709,11]
[334580473,1723272640319,-50782.47983178,0.00020709,11]
[334580505,1723272891327,164.966513,0.00014247,2]
[334580525,1723273260408,42875.10837365,0.00027,120]
[334580580,1723273833911,-394.04466942,0.00015708,2]
[334580603,1723273838469,-342.82613399,0.00015708,2]
[334580604,1723273838479,-250.387807,0.00017475,2]
[334580605,1723273838489,-300.0,0.00017638,2]
[334580606,1723273838499,-21020.7359972,0.00017639,2]
[334580607,1723273838508,-9649.70159836,0.00017882,2]
[334580608,1723273838518,-3220.6877321,0.00018804,2]
[334580609,1723273838529,-200.0,0.00018904,2]
[334580610,1723273838539,-7489.94353706,0.00018999,2]
[334580611,1723273838557,-3036.12568447,0.00018999,2]
[334580612,1723273838566,-250.0,0.00019041,2]
[334580613,1723273838576,-167.565795,0.00019178,2]
[334580614,1723273838585,-834.12707364,0.00019451,2]
[334580615,1723273838594,-157.32484162,0.00019451,2]
[334580616,1723273838604,-605.01999677,0.00019476,2]
[334580618,1723273838616,-155.18901371,0.00019477,2]
[334580620,1723273838626,-824.73179498,0.00019962,2]
[334580622,1723273838636,-289.82418402,0.0002,2]
[334580624,1723273838645,-156.42647328,0.0002,2]
[334580626,1723273838655,-154.79103211,0.0002,2]
[334580628,1723273838664,-1000.0,0.0002,20]
[334580630,1723273838674,-2514.40507974,0.0002,2]
[334580632,1723273838685,-4075.96418381,0.0002,2]
[334580689,1723273841626,-50782.47983178,0.0002,2]
[334580690,1723273841638,-20706.35373244,0.0002,2]
[334580691,1723273841650,-15723.46278576,0.0002,2]
[334580707,1723273843660,-11.85906417,0.0002,2]
[334580739,1723273973360,273.37336231,9.9e-05,2]
[334580740,1723273989852,273.37336231,9.9e-05,2]
[334580741,1723274006352,209.37774825,9.9e-05,2]
[334580744,1723274040861,414.88650261,0.00012,2]
[334580745,1723274043040,697.92386799,0.00012,2]
[334580746,1723274049015,2131.44792867,9.9e-05,2]
[334580747,1723274054359,810.1149959,0.00012,2]
[334580748,1723274059707,241.97483746,0.00012,2]
[334580749,1723274061007,12282.55620076,9.9e-05,2]
[334580750,1723274061931,3609.28567796,9.9e-05,2]
[334580751,1723274062189,26120.50095144,0.00013,2]
[334580752,1723274062283,616.97897138,0.00012,2]
[334580753,1723274067692,282.88904576,0.00012,2]
[334580754,1723274068980,155.02102962,0.00012,2]
[334580755,1723274070127,341.91139724,0.00012,2]
[334580756,1723274074390,155.0985772,0.00012,2]
[334580757,1723274088555,240.3001878,0.00014545,2]
[334580758,1723274090671,155.76873862,0.00012,2]
[334580759,1723274099005,1752.0359975,0.00014545,2]
[334580760,1723274101526,928.7536126,0.00014545,2]
[334580761,1723274103670,186.62434547,0.00012,2]
[334580762,1723274108140,218.21171043,0.00012,2]
[334580763,1723274117119,154.91368318,0.00012,2]
[334580764,1723274202617,154.94652842,0.00014545,2]
[334580765,1723274244583,194.60736977,0.00014545,2]
[334580767,1723274379886,162.360983,0.00014247,2]
[334580837,1723275038731,-1795.90411051,0.00016159,2]
[334580838,1723275038741,-3089.86893809,0.00016159,2]
[334580839,1723275038751,-1764.53474525,0.00016159,2]
[334580840,1723275038760,-810.44375008,0.00016159,2]
[334580841,1723275038769,-2164.15371537,0.00016159,2]
[334580842,1723275038781,-357.06647484,0.00016309,2]
[334580843,1723275038790,-932.72964545,0.00016309,2]
[334580844,1723275038800,-536.65030264,0.00016309,2]
[334580845,1723275038811,-688.34284053,0.00016309,2]
[334580846,1723275038821,-664.6584772,0.00016309,2]
[334580847,1723275038832,-1611.61280657,0.00016309,2]
[334580848,1723275038841,-1383.74801699,0.00016309,2]
[334580850,1723275038851,-845.8738942,0.00016309,2]
[334580852,1723275038861,-189.8862147,0.00016309,2]
[334580854,1723275038870,-727.4693855,0.00016309,2]
[334580855,1723275038879,-470.2361725,0.00016309,2]
[334580856,1723275038888,-155.90530926,0.00016309,2]
[334580857,1723275038898,-300.0,0.00016346,2]
[334580858,1723275038908,-300.0,0.00016346,2]
[334580859,1723275038918,-1717.1638182,0.00016347,2]
[334580860,1723275038927,-1500.0,0.00016347,2]
[334580861,1723275038937,-165.66670452,0.00016347,2]
[334580862,1723275038946,-241.55058347,0.00016347,2]
[334580863,1723275038955,-10076.28345924,0.00016347,2]
[334580865,1723275038965,-160.27989765,0.00016347,2]
[334580866,1723275038974,-1644.13770192,0.00016347,7]
[334580867,1723275038983,-568.97537828,0.00016347,2]
[334580868,1723275038993,-680.97850981,0.00016347,2]
[334580869,1723275039004,-522.71848665,0.00016347,2]
[334580870,1723275039014,-183.00211227,0.00016347,2]
[334580871,1723275039023,-155.32717961,0.00016347,2]
[334580872,1723275039034,-601.1945502,0.00016347,2]
[334580873,1723275039046,-354.60856661,0.00016347,2]
[334580874,1723275039057,-203.46028037,0.00016347,2]
[334580875,1723275039066,-209.85118264,0.00016347,2]
[334580876,1723275039075,-278.13675017,0.00016532,2]
[334580877,1723275039085,-289.29302474,0.00016532,2]
[334580878,1723275039094,-189.23170104,0.00016532,2]
[334580879,1723275039104,-159.33909934,0.00016532,2]
[334580880,1723275039113,-154.84848463,0.00016532,2]
[334580881,1723275039125,-154.79103211,0.00016532,2]
[334580882,1723275039134,-154.79103211,0.00016532,2]
[334580883,1723275039144,-309.56344068,0.00017019,2]
[334580884,1723275039153,-155.03366804,0.00017019,2]
[334580885,1723275039163,-450.58299636,0.00017019,2]
[334580886,1723275039172,-540.61923963,0.00017019,2]
[334580887,1723275039181,-187.2873891,0.00017019,2]
[334580888,1723275039192,-205.73413728,0.00017019,2]
[334580889,1723275039201,-1350.1048572,0.00017444,2]
[334580890,1723275039211,-5091.51977928,0.00017827,2]
[334580891,1723275039221,-420.0,0.00017866,2]
[334580892,1723275039230,-420.0,0.00017981,2]
[334580893,1723275039239,-1364.36735652,0.00018,2]
[334580894,1723275039248,-5091.51977928,0.00018189,2]
[334580895,1723275039257,-5091.51977928,0.00018515,2]
[334580896,1723275039267,-5091.51977928,0.00018671,2]
[334580897,1723275039279,-2911.95584679,0.000187,2]
[334580898,1723275039288,-480.25,0.00018794,3]
[334580899,1723275039298,-240.12,0.00018794,3]
[334580900,1723275039310,-30021.20558937,0.000188,5]
[334580901,1723275039319,-2818.10176557,0.00018804,2]
[334580902,1723275039329,-200.0,0.00018904,2]
[334580903,1723275039338,-5091.51977928,0.00018941,2]
[334580904,1723275039347,-960.5,0.00018979,3]
[334580905,1723275039357,-631.61444563,0.00018988,2]
[334580906,1723275039366,-500.0,0.00018988,2]
[334580907,1723275039375,-500.0,0.00018988,2]
[334580908,1723275039385,-500.0,0.00018988,2]
[334580909,1723275039394,-244.85891999,0.00018988,2]
[334580910,1723275039403,-500.0,0.00018988,2]
[334580911,1723275039413,-500.0,0.00018988,2]
[334580912,1723275039423,-443.06667214,0.00018988,2]
[334580913,1723275039433,-292.09575612,0.00018988,2]
[334580914,1723275039443,-500.0,0.00018988,2]
[334580915,1723275039454,-500.0,0.00018988,2]
[334580916,1723275039463,-500.0,0.00018988,2]
[334580917,1723275039473,-500.0,0.00018988,2]
[334580918,1723275039483,-479.57767174,0.00018988,2]
[334580919,1723275039492,-518.05935074,0.00018988,2]
[334580920,1723275039502,-500.0,0.00018988,2]
[334580921,1723275039511,-500.0,0.00018988,2]
[334580922,1723275039522,-500.0,0.00018988,2]
[334580923,1723275039533,-541.48821563,0.00018988,2]
[334580924,1723275039542,-500.0,0.00018988,2]
[334580925,1723275039552,-500.0,0.00018988,2]
[334580926,1723275039561,-500.0,0.00018988,2]
[334580927,1723275039571,-500.0,0.00018988,2]
[334580928,1723275039580,-500.0,0.00018988,2]
[334580929,1723275039591,-500.0,0.00018988,2]
[334580930,1723275039601,-500.0,0.00018988,2]
[334580931,1723275039610,-500.0,0.00018988,2]
[334580932,1723275039619,-500.0,0.00018988,2]
[334580933,1723275039628,-500.0,0.00018988,2]
[334580934,1723275039638,-500.0,0.00018988,2]
[334580935,1723275039648,-500.0,0.00018988,2]
[334580936,1723275039658,-500.0,0.00018988,2]
[334580937,1723275039667,-500.0,0.00018988,2]
[334580938,1723275039676,-500.0,0.00018988,2]
[334580939,1723275039686,-500.0,0.00018988,2]
[334580940,1723275039695,-500.0,0.00018988,2]
[334580941,1723275039704,-500.0,0.00018988,2]
[334580942,1723275039714,-500.0,0.00018988,2]
[334580943,1723275039725,-500.0,0.00018988,2]
[334580944,1723275039735,-500.0,0.00018988,2]
[334580945,1723275039745,-500.0,0.00018988,2]
[334580946,1723275039754,-145853.696304,0.0001899,2]
[334580947,1723275039764,-98779.40072256,0.00019,2]
[334580948,1723275039773,-150.112233,0.00019,2]
[334580949,1723275039785,-150.112233,0.000191,2]
[334580950,1723275039796,-157.77531483,0.00019153,2]
[334580951,1723275039806,-314.13592146,0.00019155,2]
[334580952,1723275039816,-9649.70159836,0.00019167,2]
[334580953,1723275039826,-9115.9890598,0.00019167,2]
[334580954,1723275039837,-150.112233,0.000192,2]
[334580955,1723275039846,-1991.94991085,0.00019256,2]
[334580956,1723275039857,-150.0,0.00019278,2]
[334580957,1723275039868,-150.112233,0.000193,2]
[334580958,1723275039878,-5091.51977928,0.00019303,2]
[334580959,1723275039888,-150.112233,0.000194,2]
[334580960,1723275039898,-500.0,0.0001944,2]
[334580961,1723275039908,-500.0,0.0001944,2]
[334580962,1723275039917,-327.35400125,0.0001944,2]
[334580963,1723275039927,-597.06762019,0.0001944,2]
[334580964,1723275039937,-452.47797614,0.0001944,2]
[334580965,1723275039946,-597.06762019,0.0001944,2]
[334580966,1723275039956,-254.86193648,0.0001944,2]
[334580967,1723275039965,-597.06762019,0.0001944,2]
[334580968,1723275039976,-597.06762019,0.0001944,2]
[334580969,1723275039985,-597.06762019,0.0001944,2]
[334580970,1723275039995,-597.06762019,0.0001944,2]
[334580971,1723275040004,-597.06762019,0.0001944,2]
[334580972,1723275040013,-597.06762019,0.0001944,2]
[334580973,1723275040022,-597.06762019,0.0001944,2]
[334580974,1723275040034,-597.06762019,0.0001944,2]
[334580975,1723275040043,-597.06762019,0.0001944,2]
[334580976,1723275040054,-597.06762019,0.0001944,2]
[334580977,1723275040063,-597.06762019,0.0001944,2]
[334580978,1723275040072,-72926.8481521,0.00019441,2]
[334580981,1723275040220,-151.0,0.00019441,2]
[334580982,1723275040230,-151.0,0.00019441,2]
[334580983,1723275040240,-612.491713,0.00019441,2]
[334580984,1723275040249,-612.491713,0.00019441,2]
[334580985,1723275040259,-1233.245764,0.00019441,2]
[334580986,1723275040268,-1233.245764,0.00019441,2]
[334580987,1723275040280,-8835.67212211,0.00019451,2]
[334580988,1723275040290,-421.84738795,0.00019477,4]
[334580989,1723275040299,-250.38146921,0.00019477,2]
[334580990,1723275040309,-150.112233,0.000195,2]
[334580991,1723275040320,-587.0,0.00019526,2]
[334580993,1723275040330,-151.0,0.00019536,2]
[334580994,1723275040342,-151.0,0.00019536,2]
[334580995,1723275040352,-612.491713,0.00019536,2]
[334580996,1723275040362,-612.491713,0.00019536,2]
[334580997,1723275040372,-1233.245764,0.00019536,2]
[334580998,1723275040382,-1233.245764,0.00019536,2]
[334580999,1723275040392,-72926.8481521,0.00019536,2]
[334581001,1723275040402,-150.112233,0.000196,2]
[334581003,1723275040414,-297.12317978,0.00019605,2]
[334581005,1723275040424,-5091.51977928,0.00019686,2]
[334581007,1723275040433,-150.112233,0.000197,2]
[334581009,1723275040443,-5091.51977931,0.00019775,2]
[334581010,1723275040454,-587.0,0.00019779,2]
[334581011,1723275040464,-72926.8481521,0.00019789,2]
[334581012,1723275040474,-150.112233,0.000198,2]
[334581013,1723275040483,-151.0,0.000198,2]
[334581014,1723275040493,-151.0,0.000198,2]
[334581015,1723275040503,-612.491713,0.000198,2]
[334581016,1723275040514,-612.491713,0.000198,2]
[334581017,1723275040525,-1233.245764,0.000198,2]
[334581018,1723275040536,-1233.245764,0.000198,2]
[334581019,1723275040545,-50000.0,0.000198,5]
[334581020,1723275040556,-151.0,0.00019879,2]
[334581021,1723275040565,-151.0,0.00019879,2]
[334581022,1723275040575,-612.491713,0.00019879,2]
[334581023,1723275040584,-612.491713,0.00019879,2]
[334581024,1723275040595,-1233.245764,0.00019879,2]
[334581025,1723275040607,-1233.245764,0.00019879,2]
[334581026,1723275040618,-27236.79752296,0.00019879,2]
[334581027,1723275040629,-2937.25803344,0.0001988,2]
[334581028,1723275040639,-2128.47183867,0.00019889,2]
[334581029,1723275040649,-2000.0,0.0001989,2]
[334581030,1723275040659,-150.112233,0.000199,2]
[334581031,1723275040670,-200.0,0.00019973,2]
[334581032,1723275040679,-200.0,0.00019973,2]
[334581033,1723275040689,-200.0,0.00019973,2]
[334581034,1723275040698,-151.0,0.00019976,2]
[334581035,1723275040707,-154.436173,0.00019976,2]
[334581036,1723275040717,-596.04115,0.00019977,2]
[334581037,1723275040728,-596.04115,0.00019977,2]
[334581038,1723275040741,-151.0,0.00019977,2]
[334581039,1723275040750,-151.0,0.00019977,2]
[334581040,1723275040762,-498.608444,0.00019977,2]
[334581041,1723275040772,-520.558592,0.00019977,2]
[334581042,1723275040783,-498.608444,0.00019977,2]
[334581043,1723275040795,-520.558592,0.00019977,2]
[334581044,1723275040806,-155.145213,0.00019977,2]
[334581045,1723275040815,-155.145213,0.00019977,2]
[334581046,1723275040825,-152.006817,0.00019977,2]
[334581047,1723275040834,-409.681053,0.00019979,2]
[334581048,1723275040843,-151.0,0.00019979,2]
[334581049,1723275040852,-153.381633,0.00019979,2]
[334581050,1723275040862,-151.0,0.00019979,2]
[334581051,1723275040872,-244.392481,0.00019979,2]
[334581052,1723275040881,-244.392481,0.00019979,2]
[334581053,1723275040892,-563.694416,0.00019979,2]
[334581054,1723275040902,-563.694416,0.00019979,2]
[334581055,1723275040914,-151.0,0.00019979,2]
[334581056,1723275040923,-151.0,0.00019979,2]
[334581057,1723275040933,-151.0,0.00019979,2]
[334581058,1723275040942,-409.681053,0.0001998,2]
[334581059,1723275040952,-151.0,0.0001998,2]
[334581060,1723275040963,-151.0,0.0001998,2]
[334581061,1723275040974,-244.392481,0.0001998,2]
[334581062,1723275040986,-244.392481,0.0001998,2]
[334581063,1723275040995,-563.694416,0.0001998,2]
[334581064,1723275041007,-563.694416,0.0001998,2]